fUSD/lending_fUSD_20250219
["ID","MTS","AMOUNT","RATE_DAILY","PERIOD"]
[353707214,1739994662424,-810.92,0.00011572,2]
[353707216,1739994662435,-724.65,0.00011572,2]
[353707218,1739994662444,-500.0,0.00011572,2]
[353707220,1739994662453,-964.47,0.00011572,2]
[353707222,1739994662463,-500.0,0.00011572,2]
[353707224,1739994662472,-500.0,0.00011572,2]
[353707225,1739994662481,-623.43,0.00011572,2]
[353707227,1739994662492,-500.0,0.00011572,2]
[353707229,1739994662502,-615.05,0.00011572,2]
[353707231,1739994662511,-500.0,0.00011572,2]
[353707233,1739994662520,-1513.67,0.00011572,2]
[353707235,1739994662530,-512.3,0.00011572,2]
[353707237,1739994662541,-567.76,0.00011572,2]
[353707239,1739994662552,-531.74,0.00011572,2]
[353707241,1739994662562,-511.83,0.00011572,2]
[353707243,1739994662571,-500.0,0.00011572,2]
[353707245,1739994662581,-802.27,0.00011572,2]
[353707247,1739994662590,-1153.09,0.00011572,2]
[353707249,1739994662600,-500.0,0.00011573,2]
[353707251,1739994662609,-500.0,0.00011573,2]
[353707253,1739994662618,-500.0,0.00011573,2]
[353707255,1739994662627,-648.85023501,0.00011573,2]
[353707257,1739994662637,-500.0,0.00011573,2]
[353707259,1739994662647,-820.5,0.00011573,2]
[353707260,1739994662658,-247.396645,0.00011573,2]
[353707261,1739994662669,-500.0,0.00011573,2]
[353707262,1739994662678,-500.0,0.00011573,2]
[353707263,1739994662689,-500.0,0.00011573,2]
[353707264,1739994662699,-284.335154,0.00011573,2]
[353707265,1739994662708,-500.0,0.00011573,2]
[353707266,1739994662718,-500.0,0.00011573,2]
[353707268,1739994662728,-500.0,0.00011573,2]
[353707270,1739994662738,-500.0,0.00011573,2]
[353707272,1739994662747,-1767.35,0.00011573,2]
[353707274,1739994662756,-745.87,0.00011573,2]
[353707276,1739994662766,-879.92,0.00011573,2]
[353707278,1739994662775,-500.0,0.00011573,2]
[353707280,1739994662786,-1079.92,0.00011573,2]
[353707282,1739994662796,-583.76,0.00011573,2]
[353707284,1739994662806,-711.1,0.00011573,2]
[353707286,1739994662815,-703.2,0.00011573,2]
[353707288,1739994662825,-629.4,0.00011573,2]
[353707289,1739994662835,-3024.66,0.00011573,2]
[353707291,1739994662844,-500.0,0.00011573,2]
[353707293,1739994662854,-698.64,0.00011573,2]
[353707295,1739994662864,-630.32,0.00011573,2]
[353707298,1739994662874,-500.0,0.00011573,2]
[353707300,1739994662884,-500.0,0.00011573,2]
[353707302,1739994662894,-500.0,0.00011573,2]
[353707304,1739994662904,-702.65,0.00011573,2]
[353707306,1739994662913,-500.0,0.00011573,2]
[353707308,1739994662923,-709.23,0.00011573,2]
[353707310,1739994662932,-1794.62,0.00011573,2]
[353707312,1739994662942,-733.91,0.00011573,2]
[353707314,1739994662952,-886.26,0.00011573,2]
[353707315,1739994662961,-1093.65,0.00011573,2]
[353707317,1739994662971,-818.79,0.00011573,2]
[353707319,1739994662981,-500.0,0.00011573,2]
[353707321,1739994662991,-610.60526851,0.00011573,2]
[353707323,1739994663001,-817.14,0.00011573,2]
[353707325,1739994663011,-500.0,0.00011575,2]
[353707327,1739994663020,-500.0,0.00011575,2]
[353707329,1739994663030,-500.0,0.00011575,2]
[353707331,1739994663039,-500.0,0.00011575,2]
[353707333,1739994663049,-500.0,0.00011575,2]
[353707335,1739994663059,-500.0,0.00011575,2]
[353707337,1739994663068,-500.0,0.00011575,2]
[353707339,1739994663078,-500.0,0.00011575,2]
[353707341,1739994663088,-500.0,0.00011575,2]
[353707343,1739994663097,-595.56,0.00011575,2]
[353707345,1739994663107,-321.29548477,0.00011575,2]
[353707347,1739994663116,-500.0,0.00011575,2]
[353707349,1739994663126,-695.38,0.00011575,2]
[353707351,1739994663136,-589.91,0.00011575,2]
[353707353,1739994663145,-500.0,0.00011575,2]
[353707355,1739994663157,-500.0,0.00011575,2]
[353707357,1739994663167,-500.0,0.00011575,2]
[353707359,1739994663177,-1138.22,0.00011575,2]
[353707361,1739994663187,-501.59,0.00011575,2]
[353707363,1739994663196,-500.0,0.00011575,2]
[353707365,1739994663206,-500.0,0.00011575,2]
[353707367,1739994663216,-500.0,0.00011575,2]
[353707369,1739994663226,-500.0,0.00011575,2]
[353707371,1739994663235,-500.0,0.00011575,2]
[353707373,1739994663245,-500.0,0.00011575,2]
[353707375,1739994663255,-500.0,0.00011575,2]
[353707377,1739994663264,-500.0,0.00011575,2]
[353707379,1739994663274,-500.0,0.00011575,2]
[353707381,1739994663284,-753.47,0.00011575,2]
[353707383,1739994663293,-216.35821356,0.00011575,2]
[353707385,1739994663303,-500.0,0.00011575,2]
[353707387,1739994663312,-500.0,0.00011575,2]
[353707389,1739994663321,-500.0,0.00011575,2]
[353707391,1739994663331,-500.0,0.00011575,2]
[353707393,1739994663340,-500.0,0.00011575,2]
[353707395,1739994663349,-500.0,0.00011575,2]
[353707397,1739994663360,-500.0,0.00011575,2]
[353707399,1739994663370,-500.0,0.00011575,2]
[353707401,1739994663379,-500.0,0.00011575,2]
[353707403,1739994663388,-500.0,0.00011575,2]
[353707405,1739994663398,-500.0,0.00011575,2]
[353707407,1739994663407,-500.0,0.00011575,2]
[353707409,1739994663417,-500.0,0.00011575,2]
[353707411,1739994663426,-365.44221311,0.00011575,2]
[353707413,1739994663436,-500.0,0.00011575,2]
[353707415,1739994663445,-500.0,0.00011575,2]
[353707417,1739994663455,-500.0,0.00011575,2]
[353707419,1739994663465,-500.0,0.00011575,2]
[353707421,1739994663475,-500.0,0.00011575,2]
[353707423,1739994663485,-500.0,0.00011575,2]
[353707425,1739994663495,-500.0,0.00011575,2]
[353707427,1739994663506,-532.59679103,0.00011575,2]
[353707429,1739994663516,-500.0,0.00011575,2]
[353707431,1739994663526,-582.49388409,0.00011575,2]
[353707433,1739994663535,-584.82,0.00011575,2]
[353707435,1739994663548,-500.0,0.00011575,2]
[353707437,1739994663557,-500.0,0.00011575,2]
[353707439,1739994663567,-500.0,0.00011575,2]
[353707441,1739994663577,-500.0,0.00011575,2]
[353707443,1739994663587,-500.0,0.00011575,2]
[353707445,1739994663597,-500.0,0.00011575,2]
[353707447,1739994663607,-500.0,0.00011575,2]
[353707449,1739994663618,-500.0,0.00011575,2]
[353707452,1739994663629,-500.0,0.00011575,2]
[353707454,1739994663639,-500.0,0.00011575,2]
[353707456,1739994663648,-500.0,0.00011575,2]
[353707458,1739994663664,-500.0,0.00011575,2]
[353707460,1739994663673,-500.0,0.00011575,2]
[353707462,1739994663683,-590.10385822,0.00011575,2]
[353707464,1739994663695,-500.0,0.00011575,2]
[353707466,1739994663705,-500.0,0.00011575,2]
[353707468,1739994663715,-500.0,0.00011575,2]
[353707470,1739994663724,-500.0,0.00011575,2]
[353707472,1739994663733,-500.0,0.00011575,2]
[353707474,1739994663745,-500.0,0.00011575,2]
[353707476,1739994663755,-500.0,0.00011575,2]
[353707478,1739994663765,-603.16,0.00011575,2]
[353707480,1739994663776,-500.0,0.00011592,2]
[353707482,1739994663786,-500.0,0.00011592,2]
[353707483,1739994663796,-527.28,0.00011592,2]
[353707485,1739994663806,-500.0,0.00011592,2]
[353707487,1739994663816,-500.0,0.00011592,2]
[353707489,1739994663827,-503.68,0.00011592,2]
[353707491,1739994663838,-500.0,0.00011592,2]
[353707494,1739994663848,-500.0,0.00011592,2]
[353707496,1739994663861,-500.0,0.00011592,2]
[353707498,1739994663872,-500.0,0.00011592,2]
[353707499,1739994663882,-500.0,0.00011592,2]
[353707501,1739994663893,-601.54,0.00011592,2]
[353707503,1739994663903,-500.0,0.00011592,2]
[353707505,1739994663914,-500.0,0.00011592,2]
[353707507,1739994663924,-608.05,0.00011592,2]
[353707510,1739994663936,-500.0,0.00011592,2]
[353707511,1739994663946,-500.0,0.00011592,2]
[353707513,1739994663957,-500.0,0.00011592,2]
[353707516,1739994663967,-560.95,0.00011592,2]
[353707518,1739994663978,-500.0,0.00011592,2]
[353707519,1739994663988,-500.0,0.00011592,2]
[353707521,1739994663998,-500.0,0.00011592,2]
[353707523,1739994664009,-500.0,0.00011592,2]
[353707525,1739994664018,-530.16,0.00011592,2]
[353707527,1739994664028,-500.0,0.00011592,2]
[353707529,1739994664038,-500.0,0.00011592,2]
[353707531,1739994664048,-500.0,0.00011592,2]
[353707534,1739994664059,-500.0,0.00011592,2]
[353707536,1739994664069,-500.0,0.00011592,2]
[353707537,1739994664078,-600.74,0.00011592,2]
[353707540,1739994664089,-500.0,0.00011592,2]
[353707544,1739994664144,-500.0,0.00011592,2]
[353707545,1739994664155,-500.0,0.00011592,2]
[353707546,1739994664165,-500.0,0.00011592,2]
[353707547,1739994664175,-500.0,0.00011592,2]
[353707548,1739994664185,-500.0,0.00011592,2]
[353707549,1739994664195,-500.0,0.00011592,2]
[353707550,1739994664204,-500.0,0.00011592,2]
[353707552,1739994664215,-500.0,0.00011592,2]
[353707554,1739994664225,-500.0,0.00011592,2]
[353707556,1739994664235,-500.0,0.00011592,2]
[353707558,1739994664245,-669.03,0.00011592,2]
[353707560,1739994664255,-500.0,0.00011592,2]
[353707562,1739994664264,-725.23,0.00011592,2]
[353707564,1739994664274,-719.86,0.00011592,2]
[353707566,1739994664287,-608.09,0.00011592,2]
[353707568,1739994664296,-562.03,0.00011592,2]
[353707570,1739994664305,-533.26827178,0.00011592,2]
[353707572,1739994664316,-500.0,0.00011592,2]
[353707574,1739994664326,-641.43,0.00011592,2]
[353707576,1739994664336,-758.65,0.00011592,2]
[353707578,1739994664347,-642.63,0.00011592,2]
[353707580,1739994664358,-500.0,0.00011592,2]
[353707582,1739994664368,-2055.39,0.00011592,2]
[353707584,1739994664378,-500.0,0.00011592,2]
[353707586,1739994664388,-520.9,0.00011592,2]
[353707588,1739994664397,-717.27,0.00011592,2]
[353707590,1739994664407,-500.0,0.00011592,2]
[353707592,1739994664416,-587.51,0.00011592,2]
[353707594,1739994664425,-500.0,0.00011592,2]
[353707596,1739994664435,-500.0,0.00011592,2]
[353707598,1739994664445,-534.5,0.00011592,2]
[353707600,1739994664455,-1177.99,0.00011592,2]
[353707602,1739994664464,-1453.64,0.00011592,2]
[353707604,1739994664474,-516.7,0.00011592,2]
[353707606,1739994664483,-500.0,0.00011592,2]
[353707608,1739994664494,-704.57,0.00011592,2]
[353707610,1739994664503,-782.44,0.00011592,2]
[353707612,1739994664513,-500.0,0.00011592,2]
[353707614,1739994664524,-797.09,0.00011592,2]
[353707616,1739994664534,-500.0,0.00011592,2]
[353707618,1739994664544,-500.0,0.00011592,2]
[353707621,1739994664554,-1193.14,0.00011592,2]
[353707622,1739994664564,-548.32,0.00011592,2]
[353707624,1739994664575,-617.29,0.00011592,2]
[353707626,1739994664584,-500.0,0.00011592,2]
[353707628,1739994664594,-500.0,0.00011592,2]
[353707630,1739994664603,-723.39,0.00011592,2]
[353707632,1739994664612,-173.36162505,0.00011592,2]
[353707692,1739994665205,-325.95661418,0.00010999,2]
[353707695,1739994665223,-174.04338582,0.00010999,2]
[353707697,1739994665233,-382.22936366,0.00011079,2]
[353707699,1739994665244,-197.42063634,0.00011079,2]
[353707701,1739994665254,-504.64,0.00011081,2]
[353707703,1739994665263,-249.7751376,0.00011099,2]
[353707706,1739994665275,-250.2248624,0.00011099,2]
[353707707,1739994665284,-155.18308714,0.00011179,2]
[353707710,1739994665296,-344.81691286,0.00011179,2]
[353707712,1739994665306,-385.34837495,0.00011592,2]
[353707714,1739994665315,-500.0,0.00011592,2]
[353707716,1739994665325,-656.19,0.00011592,2]
[353707717,1739994665334,-682.97,0.00011592,2]
[353707719,1739994665343,-819.85,0.00011592,2]
[353707721,1739994665353,-500.0,0.00011592,2]
[353707723,1739994665363,-500.0,0.00011592,2]
[353707725,1739994665373,-644.32,0.00011592,2]
[353707727,1739994665382,-977.12,0.00011592,2]
[353707730,1739994665392,-1088.39,0.00011592,2]
[353707731,1739994665401,-500.0,0.00011592,2]
[353707733,1739994665411,-500.0,0.00011592,2]
[353707735,1739994665420,-2045.49,0.00011592,2]
[353707737,1739994665429,-195.53480509,0.00011592,2]
[353707739,1739994665439,-1053.97,0.00011592,2]
[353707741,1739994665448,-500.0,0.00011592,2]
[353707743,1739994665458,-500.0,0.00011592,2]
[353707745,1739994665467,-675.13,0.00011592,2]
[353707747,1739994665476,-1093.54,0.00011592,2]
[353707749,1739994665485,-500.0,0.00011592,2]
[353707751,1739994665495,-500.0,0.00011592,2]
[353707752,1739994665504,-526.08,0.00011592,2]
[353707753,1739994665514,-500.0,0.00011592,2]
[353707754,1739994665523,-500.0,0.00011611,2]
[353707755,1739994665532,-500.0,0.00011611,2]
[353707756,1739994665541,-500.0,0.00011611,2]
[353707757,1739994665552,-1495.0,0.00011618,2]
[353707758,1739994665561,-150.0,0.0001162,2]
[353707760,1739994665572,-707.8,0.00011655,2]
[353707762,1739994665581,-564.84,0.00011655,2]
[353707764,1739994665591,-620.27,0.00011655,2]
[353707766,1739994665601,-500.0,0.00011655,2]
[353707768,1739994665610,-604.41,0.00011655,2]
[353707770,1739994665619,-501.78,0.00011655,2]
[353707772,1739994665629,-500.0,0.00011655,2]
[353707774,1739994665638,-690.23,0.00011655,2]
[353707776,1739994665647,-810.92,0.00011655,2]
[353707778,1739994665659,-724.65,0.00011655,2]
[353707780,1739994665668,-500.0,0.00011655,2]
[353707782,1739994665678,-964.47,0.00011655,2]
[353707784,1739994665687,-500.0,0.00011655,2]
[353707786,1739994665698,-500.0,0.00011655,2]
[353707787,1739994665708,-623.43,0.00011655,2]
[353707789,1739994665717,-500.0,0.00011655,2]
[353707791,1739994665727,-615.05,0.00011655,2]
[353707793,1739994665739,-500.0,0.00011655,2]
[353707795,1739994665753,-1513.67,0.00011655,2]
[353707797,1739994665762,-512.3,0.00011655,2]
[353707799,1739994665772,-567.76,0.00011655,2]
[353707801,1739994665782,-531.74,0.00011655,2]
[353707803,1739994665791,-511.83,0.00011655,2]
[353707805,1739994665801,-500.0,0.00011655,2]
[353707807,1739994665811,-802.27,0.00011655,2]
[353707809,1739994665820,-1153.09,0.00011655,2]
[353707811,1739994665829,-500.0,0.00011656,2]
[353707813,1739994665838,-500.0,0.00011656,2]
[353707815,1739994665847,-500.0,0.00011656,2]
[353707817,1739994665857,-500.0,0.00011656,2]
[353707819,1739994665866,-247.396645,0.00011656,2]
[353707821,1739994665875,-500.0,0.00011656,2]
[353707823,1739994665885,-500.0,0.00011656,2]
[353707825,1739994665894,-218.63535697,0.00011656,2]
[353707827,1739994665904,-284.335154,0.00011656,2]
[353707829,1739994665914,-500.0,0.00011656,2]
[353707831,1739994665924,-500.0,0.00011656,2]
[353707833,1739994665934,-265.03739567,0.00011656,2]
[353707835,1739994665945,-500.0,0.00011656,2]
[353707837,1739994665955,-1767.35,0.00011656,2]
[353707839,1739994665964,-745.87,0.00011656,2]
[353707840,1739994665973,-879.92,0.00011656,2]
[353707843,1739994665984,-500.0,0.00011656,2]
[353707844,1739994665994,-1079.92,0.00011656,2]
[353707846,1739994666004,-583.76,0.00011656,2]
[353707849,1739994666015,-711.1,0.00011656,2]
[353707851,1739994666025,-703.2,0.00011656,2]
[353707852,1739994666035,-629.4,0.00011656,2]
[353707854,1739994666044,-3024.66,0.00011656,2]
[353707856,1739994666053,-500.0,0.00011656,2]
[353707858,1739994666063,-698.64,0.00011656,2]
[353707860,1739994666073,-630.32,0.00011656,2]
[353707862,1739994666082,-500.0,0.00011656,2]
[353707864,1739994666092,-500.0,0.00011656,2]
[353707866,1739994666102,-500.0,0.00011656,2]
[353707869,1739994666113,-702.65,0.00011656,2]
[353707870,1739994666124,-500.0,0.00011656,2]
[353707872,1739994666135,-709.23,0.00011656,2]
[353707874,1739994666145,-1794.62,0.00011656,2]
[353707876,1739994666155,-733.91,0.00011656,2]
[353707879,1739994666166,-886.26,0.00011656,2]
[353707881,1739994666175,-1093.65,0.00011656,2]
[353707883,1739994666186,-818.79,0.00011656,2]
[353707885,1739994666196,-500.0,0.00011656,2]
[353707887,1739994666206,-817.14,0.00011656,2]
[353707888,1739994666216,-500.0,0.00011657,2]
[353707890,1739994666226,-500.0,0.00011657,2]
[353707893,1739994666237,-500.0,0.00011657,2]
[353707894,1739994666246,-412.78,0.00011657,2]
[353707896,1739994666255,-464.17712051,0.00011657,2]
[353707898,1739994666264,-500.0,0.00011657,2]
[353707900,1739994666274,-359.77183758,0.00011657,2]
[353707902,1739994666283,-500.0,0.00011657,2]
[353707904,1739994666292,-500.0,0.00011657,2]
[353707906,1739994666302,-595.56,0.00011657,2]
[353707908,1739994666311,-500.0,0.00011657,2]
[353707910,1739994666321,-695.38,0.00011657,2]
[353707912,1739994666330,-589.91,0.00011657,2]
[353707914,1739994666339,-488.74578831,0.00011657,2]
[353707916,1739994666348,-500.0,0.00011657,2]
[353707918,1739994666358,-500.0,0.00011657,2]
[353707920,1739994666367,-1138.22,0.00011657,2]
[353707922,1739994666377,-501.59,0.00011657,2]
[353707924,1739994666386,-387.77718515,0.00011657,2]
[353707931,1739994666440,-112.22281485,0.00011657,2]
[353707933,1739994666449,-500.0,0.00011657,2]
[353707935,1739994666459,-171.20836089,0.00011657,2]
[353707937,1739994666468,-500.0,0.00011657,2]
[353707938,1739994666478,-500.0,0.00011657,2]
[353707940,1739994666487,-500.0,0.00011657,2]
[353707942,1739994666496,-500.0,0.00011657,2]
[353707944,1739994666506,-500.0,0.00011657,2]
[353707947,1739994666516,-500.0,0.00011657,2]
[353707949,1739994666527,-753.47,0.00011657,2]
[353707951,1739994666538,-110.87325164,0.00011657,2]
[353707953,1739994666557,-205.01373846,0.00011657,2]
[353707955,1739994666567,-226.87126154,0.00011657,2]
[353707958,1739994666579,-56.76839346,0.00011657,2]
[353707959,1739994666588,-465.25058926,0.00011657,2]
[353707962,1739994666600,-34.74941074,0.00011657,2]
[353707964,1739994666609,-465.25058926,0.00011657,2]
[353707966,1739994666621,-27.97662317,0.00011657,2]
[353707968,1739994666630,-274.02337683,0.00011657,2]
[353707970,1739994666643,-225.97662317,0.00011657,2]
[353707972,1739994666653,-581.74898336,0.00011657,2]
[353707974,1739994666666,-500.0,0.00011657,2]
[353707976,1739994666676,-500.0,0.00011657,2]
[353707978,1739994666687,-500.0,0.00011657,2]
[353707980,1739994666697,-500.0,0.00011657,2]
[353707982,1739994666707,-500.0,0.00011657,2]
[353707983,1739994666716,-500.0,0.00011657,2]
[353707985,1739994666726,-500.0,0.00011657,2]
[353707988,1739994666738,-500.0,0.00011657,2]
[353707990,1739994666748,-500.0,0.00011657,2]
[353707991,1739994666758,-500.0,0.00011657,2]
[353707993,1739994666767,-500.0,0.00011657,2]
[353707995,1739994666777,-500.0,0.00011657,2]
[353707996,1739994666787,-500.0,0.00011657,2]
[353707997,1739994666797,-500.0,0.00011657,2]
[353707998,1739994666808,-500.0,0.00011657,2]
[353707999,1739994666819,-584.82,0.00011657,2]
[353708000,1739994666829,-500.0,0.00011657,2]
[353708001,1739994666839,-500.0,0.00011657,2]
[353708003,1739994666850,-338.90562842,0.00011657,2]
[353708006,1739994666860,-500.0,0.00011657,2]
[353708007,1739994666870,-500.0,0.00011657,2]
[353708009,1739994666880,-500.0,0.00011657,2]
[353708012,1739994666891,-500.0,0.00011657,2]
[353708013,1739994666901,-500.0,0.00011657,2]
[353708016,1739994666911,-500.0,0.00011657,2]
[353708018,1739994666923,-500.0,0.00011657,2]
[353708019,1739994666933,-500.0,0.00011657,2]
[353708021,1739994666943,-500.0,0.00011657,2]
[353708023,1739994666953,-500.0,0.00011657,2]
[353708025,1739994666963,-500.0,0.00011657,2]
[353708027,1739994666973,-500.0,0.00011657,2]
[353708029,1739994666983,-500.0,0.00011657,2]
[353708032,1739994666993,-155.72343745,0.00011657,2]
[353708033,1739994667002,-500.0,0.00011657,2]
[353708035,1739994667012,-500.0,0.00011657,2]
[353708037,1739994667022,-500.0,0.00011657,2]
[353708039,1739994667032,-603.16,0.00011657,2]
[353708041,1739994667042,-501.93254454,0.0001166,2]
[353708043,1739994667052,-150.0,0.00011669,2]
[353708045,1739994667061,-500.0,0.00011675,2]
[353708047,1739994667072,-500.0,0.00011675,2]
[353708049,1739994667081,-527.28,0.00011675,2]
[353708051,1739994667090,-500.0,0.00011675,2]
[353708053,1739994667100,-500.0,0.00011675,2]
[353708055,1739994667110,-503.68,0.00011675,2]
[353708057,1739994667119,-500.0,0.00011675,2]
[353708059,1739994667129,-500.0,0.00011675,2]
[353708061,1739994667138,-500.0,0.00011675,2]
[353708063,1739994667148,-500.0,0.00011675,2]
[353708065,1739994667158,-500.0,0.00011675,2]
[353708067,1739994667167,-601.54,0.00011675,2]
[353708069,1739994667177,-500.0,0.00011675,2]
[353708071,1739994667190,-500.0,0.00011675,2]
[353708073,1739994667206,-608.05,0.00011675,2]
[353708075,1739994667217,-500.0,0.00011675,2]
[353708077,1739994667228,-500.0,0.00011675,2]
[353708079,1739994667238,-500.0,0.00011675,2]
[353708081,1739994667247,-560.95,0.00011675,2]
[353708083,1739994667257,-500.0,0.00011675,2]
[353708086,1739994667266,-500.0,0.00011675,2]
[353708088,1739994667277,-500.0,0.00011675,2]
[353708090,1739994667287,-500.0,0.00011675,2]
[353708092,1739994667296,-530.16,0.00011675,2]
[353708094,1739994667306,-500.0,0.00011675,2]
[353708096,1739994667315,-500.0,0.00011675,2]
[353708098,1739994667325,-500.0,0.00011675,2]
[353708100,1739994667336,-500.0,0.00011675,2]
[353708102,1739994667346,-500.0,0.00011675,2]
[353708104,1739994667355,-600.74,0.00011675,2]
[353708106,1739994667365,-416.04510801,0.00011675,2]
[353708108,1739994667375,-500.0,0.00011675,2]
[353708110,1739994667385,-500.0,0.00011675,2]
[353708112,1739994667394,-500.0,0.00011675,2]
[353708114,1739994667404,-500.0,0.00011675,2]
[353708116,1739994667413,-500.0,0.00011675,2]
[353708118,1739994667423,-500.0,0.00011675,2]
[353708120,1739994667434,-500.0,0.00011675,2]
[353708122,1739994667444,-500.0,0.00011675,2]
[353708124,1739994667454,-500.0,0.00011675,2]
[353708126,1739994667465,-669.03,0.00011675,2]
[353708128,1739994667475,-725.23,0.00011675,2]
[353708130,1739994667485,-719.86,0.00011675,2]
[353708132,1739994667495,-608.09,0.00011675,2]
[353708134,1739994667505,-612.86305642,0.00011675,2]
[353708136,1739994667514,-641.43,0.00011675,2]
[353708138,1739994667524,-758.65,0.00011675,2]
[353708140,1739994667534,-642.63,0.00011675,2]
[353708142,1739994667544,-500.0,0.00011675,2]
[353708144,1739994667556,-2055.39,0.00011675,2]
[353708146,1739994667566,-500.0,0.00011675,2]
[353708148,1739994667575,-520.9,0.00011675,2]
[353708150,1739994667585,-717.27,0.00011675,2]
[353708152,1739994667595,-500.0,0.00011675,2]
[353708154,1739994667604,-587.51,0.00011675,2]
[353708156,1739994667614,-500.0,0.00011675,2]
[353708158,1739994667624,-500.0,0.00011675,2]
[353708160,1739994667634,-534.5,0.00011675,2]
[353708162,1739994667643,-1177.99,0.00011675,2]
[353708164,1739994667653,-736.37263941,0.00011675,2]
[353708218,1739994668250,800.0,9.314e-05,2]
[353708335,1739994669844,157.63,8.767e-05,2]
[353708544,1739994696642,2600.0,9.314e-05,2]
[353708545,1739994699304,2400.0,9.314e-05,2]
[353708546,1739994814112,833.29,0.00010178,2]
[353708547,1739994820567,404.94,0.00010178,2]
[353708548,1739994820819,404.94,0.00010189,2]
[353708549,1739994821073,404.94,0.00010199,2]
[353708550,1739994821307,404.94,0.0001021,2]
[353708551,1739994821539,404.94,0.00010221,2]
[353708552,1739994821747,404.94,0.00010231,2]
[353708553,1739994821981,404.94,0.00010242,2]
[353708554,1739994822200,404.94,0.00010253,2]
[353708555,1739994822417,404.94,0.00010264,2]
[353708556,1739994822635,404.94,0.00010274,2]
[353708557,1739994822853,404.94,0.00010285,2]
[353708558,1739994823091,404.94,0.00010296,2]
[353708559,1739994823349,404.94,0.00010306,2]
[353708560,1739994823557,404.94,0.00010317,2]
[353708561,1739994823820,404.94,0.00010328,2]
[353708562,1739994824015,404.94,0.00010339,2]
[353708563,1739994824256,404.94,0.00010349,2]
[353708564,1739994824491,404.94,0.0001036,2]
[353708565,1739994824946,404.94,0.00010371,2]
[353708566,1739994825376,404.94,0.00010381,2]
[353708567,1739994833262,5552.0,0.000102,5]
[353708568,1739994864281,5552.0,0.000102,5]
[353708569,1739994906730,155.0,0.000102,3]
[353708570,1739994930793,169.16,0.00010179,2]
[353708571,1739994994425,1584.58,8.271e-05,2]
[353708572,1739995017011,899.08083777,0.00010483,2]
[353708573,1739995074653,350.56,0.00010205,2]
[353708574,1739995112755,500.0,0.00010153,2]
[353708575,1739995132440,449.54041889,0.00010484,2]
[353708576,1739995132588,222.13774929,0.00010484,2]
[353708577,1739995139908,800.0,9.314e-05,2]
[353708578,1739995175403,2500.0,9.314e-05,2]
[353708579,1739995176166,2300.0,9.314e-05,2]
[353708580,1739995221381,2000.0,0.00010171,2]
[353708581,1739995247859,224.77020944,0.00010484,2]
[353708582,1739995286727,1500.0,0.00010198,2]
[353708583,1739995290003,1078.26,0.00010198,2]
[353708584,1739995413670,164.52,8.134e-05,2]